{"text_format":"1","workbook":"xlsx","n_sheets":2,"sheets":["Diagnostico","Hoja2"],"not_rendered":{"charts":4,"images":0,"macros":1,"external_links":0,"defined_names":0,"comments":0,"pivot_tables":0},"unopened":[],"bounds":{"document_bytes":16777216,"sheet_cells":100000,"rows_first":2000,"rows_last":500,"rows_between":2000,"halvings":0,"cell_chars":16384,"cell_head_chars":4096},"cells_cut":0,"cells_raw":0,"read":"whole","date_system":"1900"}

{"sheet":"Diagnostico","index":0,"n_rows":103,"n_cols":9,"rows_kept":103,"cut":false,"hidden":false,"merged":[[54,1,55,4],[54,6,55,8],[102,1,103,4],[102,6,103,8],[87,3,89,7],[90,3,99,7],[44,1,51,1],[1,1,1,8],[33,2,35,2],[33,3,35,3],[7,1,14,1],[7,2,8,2],[7,3,8,3],[10,2,11,2],[10,3,11,3],[3,1,3,6],[3,7,3,8],[37,4,40,4],[27,2,28,2],[27,3,28,3],[29,2,32,2],[29,3,32,3],[27,1,43,1],[36,2,40,2],[36,3,40,3],[15,1,26,1],[15,2,17,2],[15,3,17,3],[18,2,23,2],[18,3,23,3]]}
[]
[null,"DIAGNÓSTICO - PLANES DE INTERNACIONALIZACIÓN"]
[]
[null,"Para facilitarle a las unidades académicas la reflexión sobre su estado en materia de internacionalización, se asociaron los ejes, objetivos e indicadores a los escenarios, determinando unos niveles de desarrollo de los indicadores, como se muestra en la siguiente tabla:",null,null,null,null,null,"Seleccione con el botón de control y califique el estado de su unidad académica frente a cada indicador (Bajo, Medio o Alto)\nBajo                 Medio                  Alto"]
[]
[]
[null,"Eje estratégico","Objetivo","Nombre indicador","Fórmula del indicador","Nombre","Internacionalización básica","Internacionalización como proceso transversal","Internacionalización como sistema"]
[null,"Interacción Estratégica","Implementación de lineamientos de políticas para la interacción.","1- Logros de los lineamientos de las políticas de interacción ","Definición de agenda estratégica de internacionalización de la unidad académica a la luz de la apuesta institucional plasmada en el respectivo Plan de Acción.","Mapa de socios estratégicos","No se cuenta con un mapa de socios estratégicos de la unidad académica definido y actualizado permanentemente","1 mapa de socios estratégicos de la unidad académica definido y actualizado permanentemente","1 agenda de relacionamiento estratégico de la unidad académica, a partir del mapa, gestionada y con resultados"]
[null,null,null,null,"Cantidad de informes integrados de gestión, resultados e impactos en la unidad académica, de los lineamientos de internacionalización institucional.","Informe integrado","1 Informe integrado de la gestión en la unidad académica, de los lineamientos de internacionalización institucional: interacción,  redes, constitución de comunidades académicas y su interacción, convenios, alianzas/año","1 Informe integrado de la gestión y los resultados en la unidad académica, de los lineamientos de internacionalización institucional: interacción,  redes, constitución de comunidades académicas y su interacción, convenios, alianzas/año","1 Informe integrado de la gestión, resultados e impactos en la unidad académica, de los lineamientos de internacionalización institucional: interacción,  redes, constitución de comunidades académicas y su interacción, convenios, alianzas/año"]
[null,null,"Creación de redes académicas, de aprendizaje, de investigación y de extensión.","2- Creación de redes","Cantidad de redes académicas, de aprendizaje, de investigación y de extensión activos a nivel nacional e internacional, creadas o lideradas por la unidad académica. ","Liderazgo de una red","La unidad académica no tiene el liderazgo y no ha creado una red académica, de aprendizaje, investigación o extensión a nivel nacional o internacional","La unidad académica está en proceso de crear una red académica, de aprendizaje, de investigación o de extensión a nivel nacional o internacional","1 red académica, de aprendizaje, de investigación o de extensión a nivel nacional e internacional activo a nivel nacional o internacional creada/liderada por la unidad académica"]
[null,null,"Participación en redes académicas, científicas, técnicas, tecnológicas, de cultura y de aprendizaje.","3- Participación en redes","Cantidad de estudiantes de la unidad académica participando en redes académicas a nivel nacional e internacional/ Total de estudiantes matriculados en la unidad académica*100  ","Estudiantes participantes en una red","Ningún estudiante de la unidad académica participa en redes académicas a nivel nacional e internacional ","0,1-0,5% estudiantes de la unidad académica participa en redes académicas a nivel nacional e internacional al año","0,6-1% estudiantes de la unidad académica participa en redes académicas a nivel nacional e internacional al año"]
[null,null,null,null,"Cantidad de profesores vinculados y ocasionales de la unidad académica participando en redes académicas a nivel nacional e internacional/ Total de profesores vinculados y ocasionales de la unidad académica*100","Profesores participantes en una red","0-10% de los profesores vinculados y ocasionales de la unidad académica participa activamente en al menos una red académica, científica, técnica, tecnológica, de cultura o de aprendizaje, a nivel nacional o internacional","11-30% de los profesores vinculados y ocasionales de la unidad académica participa activamente en al menos una red académica, científica, técnica, tecnológica, de cultura o de aprendizaje, a nivel nacional o internacional","31-50% de los profesores vinculados y ocasionales de la unidad académica participa activamente en al menos una red académica, científica, técnica, tecnológica, de cultura o de aprendizaje, a nivel nacional o internacional"]
[null,null,"Gestión de convenios.","4- Convenios activos","Cantidad de convenios nacionales e internacionales activos con productos y resultados en la unidad académica/ cantidad total de convenios vigentes para la unidad académica*100","Convenios con productos y resultados","100% de los convenios nacionales e internacionales vigentes para la unidad académica están activos con productos y resultados","100% de los convenios nacionales e internacionales  vigentes para la unidad académica están activos con productos y resultados en las 3 labores sustantivas","100% de los convenios nacionales e internacionales vigentes para la unidad académica responden a una agenda estratégica de relacionamiento y están activos con productos y resultados en las 3 labores sustantivas"]
[null,null,"Interacción de la comunidad académica.","5- Interacción global","Cantidad de espacios de relacionamiento estratégico en los que participa la unidad académica, bien sea que hayan sido organizados por ésta o que sean ofrecidos por la Universidad/ año","Participación en espacios de interacción","1 espacio anual en el que se participa","Entre 2- 3 espacios anuales en los que se participa","Más de 4 espacios anuales en los que se participa"]
[null,null,"Interacción con egresados en el exterior.","6- Egresados en el exterior","Cantidad de egresados  de la unidad académica en el exterior participantes en encuentros, proyectos, servicios ofrecidos por la unidad académica o por la Universidad/ Total de egresados de la unidad académica que se encuentran en el exterior*100","Participación de egresados","Menos del 5% de egresados  de la unidad académica que están en el exterior participan en encuentros, proyectos o servicios al año","5- 15% de egresados  de la unidad académica que están en el exterior participan en encuentros, proyectos o servicios al año","Más del 15% de egresados  de la unidad académica que están en el exterior participan en encuentros, proyectos o servicios al año"]
[null,"Movilidad","Movilidad entrante y saliente de estudiantes.","7- Movilidad estudiantes","Cantidad de estudiantes de la unidad académica en movilidad nacional e internacional saliente, presencial y virtual/ Total de estudiantes potenciales de movilidad  de la unidad académica* 100","Movilidad saliente de estudiantes","0-0,6% estudiantes de la unidad académica potenciales de un intercambio han hecho movilidad saliente presencial o virtual, a nivel nacional e internacional al año","0,7-0,9% estudiantes de la unidad académica potenciales de un intercambio han hecho movilidad saliente presencial o virtual, a nivel nacional e internacional al año","Más de 1% estudiantes de la unidad académica potenciales de un intercambio han hecho movilidad saliente presencial o virtual, a nivel nacional e internacional al año"]
[null,null,null,null,"Cantidad de estudiantes de la unidad académica en movilidad saliente presencial y virtual con países de otras lenguas / Total de movilidades de estudiantes matriculados en la unidad académica* 100","Movilidad estudiantil en otras lenguas","100% de la movilidad saliente presencial y virtual al año de los estudiantes se hace con países hispanohablantes","1-10% de los estudiantes en movilidad saliente presencial y virtual al año lo hacen con países de otras lenguas","11-20% de los estudiantes en movilidad saliente presencial y virtual al año lo hacen con países de otras lenguas"]
[null,null,null,null,"Cantidad de estudiantes en movilidad entrante nacional e internacional, presencial y virtual en la unidad académica/Total de estudiantes matriculados en la unidad académica*100","Movilidad entrante de estudiantes","0-0,3% al año","0,4-0,5% al año","Más de 0,5% al año"]
[null,null,"Movilidad entrante y saliente de profesores y personal administrativo.","8- Movilidad docente y de personal administrativo","Cantidad de profesores vinculados y ocasionales de la unidad académica en movilidad saliente presencial y virtual, nacional e internacional/ Total de profesores vinculados y ocasionales  de la unidad académica* 100","Movilidad saliente de profesores","0-10% profesores vinculados y ocasionales de la unidad académica han hecho movilidad saliente presencial o virtual, a nivel nacional e internacional al año","11-20-% profesores vinculados y ocasionales de la unidad académica han hecho movilidad saliente presencial o virtual, a nivel nacional e internacional al año","Más de 21% docentes de la unidad académica profesores vinculados y ocasionales de la unidad académica han hecho movilidad saliente presencial o virtual, a nivel nacional e internacionalal año"]
[null,null,null,null,"Cantidad de profesores vinculados y ocasionales de la unidad académica en movilidad saliente presencial y virtual con países de otras lenguas / Total de movilidades de profesores vinculados y ocasionales de la unidad académica * 100","Movilidad profesoral en otras lenguas","100% de la movilidad saliente presencial y virtual al año de profesores se hace con países dhispanohablantes","1-10% de los profesores vinculados y ocasionales en movilidad saliente presencial y virtual lo hacen con países de otras lenguas","11-20% de los profesores vinculados y ocasionales en movilidad saliente presencial y virtual lo hacen con países de otras lenguas"]
[null,null,null,null,"Cantidad de profesores vinculados y ocasionales de la unidad académica que asisten a eventos internacionales, presenciales o virtuales (como investigadores visitantes o conferencistas, cursos de actualización, etc.) / Cantidad total de profesores vinculados y ocasionales de la unidad académica*100","Asistencia de profesores a eventos","0-4% de los profesores vinculados y ocasionales e investigadores de la unidad académica  asisten a eventos internacionales presenciales o virtuales al año","5-25% de los profesores vinculados y ocasionales e investigadores de la unidad académica  asisten a eventos internacionales presenciales o virtuales al año","26-50% de los profesores vinculados y ocasionales e investigadores de la unidad académica  asisten a eventos internacionales presenciales o virtuales al año"]
[null,null,null,null,"Cantidad de profesores en movilidad nacional e internacional, presencial o virtual entrante en la unidad académica/Total de profesores vinculados y ocasionales  de la unidad académica*100","Movilidad entrante de profesores","0-0,3% al año","0,4-0,5% al año","Más de 0,5% al año"]
[null,null,null,null,"Cantidad de personal administrativo de la unidad académica en movilidad saliente presencial y virtual / Total de movilidades de personal administrativo de la unidad académica * 100","Movilidad saliente de personal administrativo","0-5% del personal administrativo de la unidad académica han hecho movilidad saliente presencial o virtual, a nivel nacional e internacional al año","6-10% del personal administrativo de la unidad académica han hecho movilidad saliente presencial o virtual, a nivel nacional e internacional al año","Más de 11% del personal administrativo de la unidad académica han hecho movilidad saliente presencial o virtual, a nivel nacional e internacional al año"]
[null,null,null,null,"Cantidad de personal administrativo de en movilidad nacional e internacional, presencial o virtual entrante en la unidad académica / Total de movilidades de personal administrativo de la unidad académica * 100","Movilidad entrante de personal administrativo","0-0,15% al año","0,16-0,3% al año","Más de 0,3% al año"]
[null,null,"Gestión de programas de doble titulación.","9- Programas de doble titulación","Cantidad de estudiantes de la unidad académica cursando programas de doble titulación nacional o internacional/ año","Estudiantes en doble titulación","Ningún estudiante de la unidad académica cursando doble titulación ","1 estudiante de la unidad académica cursando doble titulación ","Al menos 1 estudiante de la unidad académica cursando doble titulación por cada convenio de doble titulación vigente"]
[null,null,"Gestión de homologaciones y reconocimiento de aprendizajes y créditos académicos.","10- Homologaciones y reconocimiento","Cantidad de informes integrados de gestión, resultados e impactos de las homologaciones y reconocimiento de aprendizajes y créditos académicos realizados para estudiantes en movilidad saliente nacional e internacional, presencial y virtual.","Informes de homologaciones","1 Informe integrado de gestión de las homologaciones reconocimiento de aprendizajes y créditos académicos realizados para estudiantes en movilidad saliente","1 Informe integrado de gestión y de resultados de las homologaciones reconocimiento de aprendizajes y créditos académicos realizados para estudiantes en movilidad saliente","1 Informe integrado de gestión, de resultados y de impacto de las homologaciones reconocimiento de aprendizajes y créditos académicos realizados para estudiantes en movilidad saliente"]
[null,null,"Aplicación de estímulos para la interacción y la cooperación.","11- Estímulos para la interacción","Valor de los estímulos, apoyos económicos y recursos del fondo de movilidad otorgados a estudiantes, profesores y administrativos de la unidad académica para la interacción y la cooperación en general (nacional e internacional) y en segunda lengua / Valor del presupuesto total de la unidad académica*100","Presupuesto para cooperación","0-0,05% del presupuesto anual de la unidad académica se invierte en estímulos, apoyos económicos, fondo de movilidad para la interacción y la cooperación a nivel nacional e internacional","0,06-0,07% del presupuesto anual de la unidad académica se invierte en estímulos, apoyos económicos, fondo de movilidad para la interacción y la cooperación a nivel nacional e internacional","Más de 0,07% del del presupuesto anual de la unidad académica se invierte en estímulos, apoyos económicos, fondo de movilidad para la interacción y la cooperación a nivel nacional e internacional"]
[null,"Gestión De Capacidades","Gestión de estrategias internacionalización en casa.","12- Internacionalización en casa.","Cantidad de micro certificaciones ofrecidas por la unidad académica o la Universidad para los estudiantes de la unidad académica.","Oferta de microcertificaciones","1 microcertificación ofrecida por la Universidad al año","2 microcertificación ofrecida por la Universidad al año","1 microcertificación ofrecida por la Universidad y 1 microcertificación ofrecida por la unidad académica al año"]
[null,null,null,null,"Cantidad de estudiantes de la unidad académica que participan en actividades que promueven la interculturalidad y la visión global / Cantidad total de estudiantes de la unidad académica","Participación en actividades de interculturalidad","1-5% de los estudiantes participa anualmente  en actividades  que promueven la interculturalidad y la visión global ","6-10% de los estudiantes participa anualmente  en actividades  que promueven la interculturalidad y la visión global ","Más del 10% de los estudiantes participa anualmente en actividades  que promueven la interculturalidad y la visión global "]
[null,null,"Formación de competencias globales, multiculturales y de otras lenguas.","13- Competencias globales","Definición de habilidades internacionales en el perfil de egreso y plan de estudios ","Perfil global de egreso","La unidad académica no ha definido el perfl de egreso y plan de estudios que incluya formación en habilidades internacionales y habilidades multi e interculturales","1 perfl de egreso y plan de estudios que incluye formación en habilidades internacionales (incluyendo tics y habilidades multi e interculturales)","1 informe de evaluación de las habilidades internacionales (incluyendo tics y habilidades multi e interculturales) en los estudiantes de la unidad académica"]
[null,null,null,null,"Cantidad de estudiantes de la unidad académica con competencias en segunda lengua / Total de estudiantes  de la unidad académica* 100","Certificaciones estudiantes en segunda lengua","0-5% de los estudiantes certificados en un nivel B1","6-10% de los estudiantes certificados en un nivel B1","Más del 10% de los estudiantes certificados en un nivel B1"]
[null,null,null,null,"Cantidad de profesores vinculados y ocasionales de la unidad académica con competencias en segunda lengua / Total de profesores  vinculados y ocasionales de la unidad académica* 100","Certificación profesores en segunda lengua","0-30% de los docentes certificados en un nivel B1","31-50% de los docentes certificados en un nivel B1","50% de los docentes certificados en un nivel B2"]
[null,null,null,null,"Cantidad de profesores vinculados y ocasionales de la unidad académica formados en competencias globales y multiculturales por la unidad académica, la DRI, otra dependencia de la Universidad o externamente/ Total de profesores vinculados y ocasionales de la unidad académica* 100","Formación docente en competencias globales","0-10% de profesores vinculados y ocasionales de la unidad académica asiste anualmente mínimo a 10 horas de capacitación a actividades de formación en competencias globales y multiculturales ","11-20% de profesores vinculados y ocasionales de la unidad académica asiste anualmente mínimo a 10 horas de capacitación a actividades de formación en competencias globales y multiculturales ","21- 30% de profesores vinculados y ocasionales de la unidad académica asiste anualmente mínimo a 10 horas de capacitación a actividades de formación en competencias globales y multiculturales "]
[null,null,"Gestión de estrategias de internacionalización del currículo.","14- Internacionalización del currículo.","Cantidad de profesores vinculados y ocasionales de la unidad académica que aplican estrategias de internacionalización del currículo: contenido internacional, cotutelas, clase espejo, codirecciones, COIL,  bibliografía en otro idioma, aula invertida, CUL/AICLE Aprendizaje Integrado de Contenidos y Lenguas Extranjeras (AICLE; en inglés Content and Language Integrated Learning, CLIL), participación en comunidades internacionales de aprendizaje, competencia multi e interculturales, enfoque inter comprensivo de otras lenguas, entre otras / Total de profesores vinculados y ocasionales de la unidad académica * 100","Estrategias de internacionalización en el aula","1-10% de profesores  vinculados y ocasionales de la unidad académica aplican al menos 1 estrategia de internacionalización del currículo al año","1-10% de profesores vinculados y ocasionales de la unidad académica  aplican al menos 2 estrategias de internacionalización del currículo al año","1-10% de profesores vinculados y ocasionales de la unidad académica  aplican al menos 3 estrategia de internacionalización del currículo al año"]
[null,null,null,null,"Cantidad de planes de estudio de los programas de la unidad académica con sistema de créditos armonizados con referentes internacionales/ Total de programas académicos de la unidad académica*100","Armonización de planes de estudios","Ninguno de los planes de estudios armonizados","En proceso de armonización de los planes de estudios ","100% de los planes de estudios armonizados"]
[null,null,null,null,"Cantidad de planes de estudio de los programas de la unidad académica con resultados de aprendizaje referenciados internacionalmente/ Total de programas académicos de la unidad académica*100","Referenciación internacional de resultados de aprendizaje","Ninguno de los planes de estudios con referenciación internacional de resultados de aprendizaje","La unidad académica en proceso de referenciación internacional de resultados de aprendizaje","100% de los planes de estudios con referentes de resultados de aprendizaje"]
[null,null,"Proyección internacional de la producción científica Innovación, artística, cultural y emprendimientos.","15- Producción investigativa","Cantidad de servicios y actividades de diplomacia científica en las que participa la unidad académica / año","Acciones de diplomacia científica","1 acción de diplomacia científica en el que participa la unidad académica al año","Entre 2 y 3 acciones de diplomacia científica en los que participa la unidad académica al año","Más de 4 acciones de diplomacia científica en los que participa la unidad académica al año"]
[null,null,null,null,"Cantidad de productos de investigación publicados por investigadores de la unidad académica con investigadores extranjeros/ Cantidad de productos de investigación realizados en la unidad académica*100","Artículos con investigadores extranjeros","Ningún artículo de investigación  publicado en revistas indexadas de manera conjunta con investigadores extranjeros.","1-4% de los artículos de investigación son publicados en revistas indexadas de manera conjunta con investigadores extranjeros.","Mínimo 5% de los artículos de investigación son publicados en revistas indexadas de manera conjunta con investigadores extranjeros."]
[null,null,null,null,null,"Libros con investigadores extranjeros","Ninguno de libros resultados de investigación publicados con investigadores extranjeros.","1-4% de libros resultados de investigación publicados con investigadores extranjeros.","Mínimo 5% de libros resultados de investigación publicados con investigadores extranjeros."]
[null,null,null,null,null,"Capítulos de libros con investigadores extranjeros","Ningún capítulo de libro resultado de investigación publicados con investigadores extranjeros.","1-4% de capítulos de libros resultados de investigación publicados con investigadores extranjeros.","Mínimo 5% de capítulos de libros resultados de investigación publicados con investigadores extranjeros."]
[null,null,null,null,null,"Desarrollo conjunto de obras artísticas","Ningún desarrollo de muestras de obras artísticas y culturales  en conjunto con artistas extranjeros  (aplica para unidades académicas que por su naturaleza tiene este tipo de producción).","En proceso 1 desarrollo de muestras de obras artísticas y culturales  en conjunto con artistas extranjeros  (aplica para unidades académicas que por su naturaleza tiene este tipo de producción).","1 desarrollo de muestras de obras artísticas y culturales  en conjunto con artistas extranjeros  (aplica para unidades académicas que por su naturaleza tiene este tipo de producción)."]
[null,null,"Gestión de recursos y oportunidades de cooperación.","16- Recursos de cooperación","Cantidad de proyectos de cooperación académica nacional e internacional gestionados por la unidad académica al año.","Proyectos de cooperación","Ningún proyectos de cooperación académica gestionados al año por la unidad académica","1 proyectos de cooperación académica gestionados al año por la unidad académica a nivel nacional o internacional","2 proyectos de cooperación académica gestionados al año por la unidad académica a nivel nacional o internacional"]
[null,null,"Referenciación internacional de oferta académica, tendencias de las disciplinas, experiencias y prácticas.","17- Referenciación académica","Cantidad de estudios de referenciación internacional realizados por la unidad académica al año","Estudios de referenciación","Ningún estudio de referenciación internacional de oferta académica, tendencias de las disciplinas, experiencias y prácticas realizado por la unidad académica al año","En proceso 1 estudio de referenciación internacional de oferta académica, tendencias de las disciplinas, experiencias y prácticas realizado por la unidad académica al año","1 estudio de referenciación internacional de oferta académica, tendencias de las disciplinas, experiencias y prácticas realizado por la unidad académica al año"]
[null,null,"Incorporación de tecnologías de información y aprendizaje.","18- Tecnologías de aprendizaje","Cantidad de profesores vinculados y ocasionales de la unidad académica que incorporan tecnologías de aprendizaje: recursos educativos digitales abiertos, MOOC- Massive, Open, Online, Course-, NOOC - Nano Open Online Massive- y SPOC- Small Private Online Course/ Total de profesores vinculados y ocasionales de la unidad académica de la unidad académica * 100","Tecnologías aplicadas a la docencia","1-10% de profesores vinculados y ocasionales de la unidad académica incorporan al menos 1 tecnología","11-15% de profesores  vinculados y ocasionales de la unidad académica incorporan al menos 1 tecnología","Más de 15% de profesores  vinculados y ocasionales de la unidad académica incorporan al menos 1 tecnología"]
[null,"Gestión Administrativa","Existencia de una estructura de soporte para la internacionalización.","19- Estructura organizacional","Cantidad de personas que soportan la gestión operativa de la internacionalización en la unidad académica","Responsables de la internacionalización","Una estructura que responda a la capacidad instalada de la unidad académica (talento humano, recursos, etc.) y a las metas definidas por esta en términos de internacionalización","Una estructura que responda a la internacionalización como procesos y a la capacidad instalada de la unidad académica (talento humano, recursos, etc.)","Una estructura que responda a la internacionalización como sistema y a la capacidad instalada de la unidad académica (talento humano, recursos, etc.)"]
[null,null,"Existencia de lineamientos para la internacionalización.","20- Lineamientos  de internacionalización","Aplicación en la unidad académica de lineamientos institucionales para la internacionalización: movilidad, contratación profesores extranjeros, contratación de profesores con competencias en segunda lengua, homologaciones y reconocimiento de resultados de aprendizaje","Lineamientos de internacionalización","Ningún  lineamiento institucional para la internacionalización se aplica en la unidad académica","En proceso de aplicación en la unidada académica los lineamientos institucionales  para movilidad, contratación profesores extranjeros, contratación de profesores con competencias en segunda lengua, homologaciones y reconocimiento de resultados de aprendizaje","Aplicación  en la unidad académica de los lineamientos institucionales para movilidad, contratación profesores extranjeros, contratación de profesores con competencias en segunda lengua, homologaciones y reconocimiento de resultados de aprendizaje"]
[null,null,"Gestión de sistema institucional de evaluación y autorregulación de la internacionalización.","21- Evaluación y autorregulación","Existencia de un sistema institucional de gestión integral de la internacionalización","Sistema integrado de gestión","Inexistencia de un sistema integrado de aseguramiento de la calidad implementado en la unidad académica que inlcuye la internacionalización como proceso transversal","En proceso de apropiación del sistemainstitucional integrado de aseguramiento de la calidad por la unidad académica, que incluye la internacionalización como proceso transversal","1 sistema institucional integrado de aseguramiento de la calidad apropiado en la unidad académica que icluye la internacionalización como proceso transversal"]
[null,null,"Comunicación y difusión de servicios y actividades de internacionalización.","22- Comunicación","Cantidad de servicios y actividades de internacionalización que se difunden por parte de la Universidad y de la unidad académica a los miembros de la comunidad de la unidad académica","Difusión de actividades","1-30 actividades de internacionalización se difunden por parte de la Universidad y de la unidad académica a los miembros de esta/Año","31-60 actividades de internacionalización se difunden por parte de la Universidad y de la unidad académica a los miembros de esta/Año","Más de 61 actividades de internacionalización se difunden por parte de la Universidad y de la unidad académica a los miembros de esta/Año"]
[null,null,"Asignación de recursos para la internacionalización.","23- Recursos disponibles","Valor de los recursos asignados a la internacionalización en la unidad académica/ Valor del presupuesto total de la unidad académica*100","Recursos para la internacionalización","0-0,09% del presupuesto de la unidad académica se invierte en internacionalización ","0,1-1,5% del presupuesto de la unidad académica se invierte en internacionalización ","Más de 1,5% del presupuesto de la unidad académica se invierte en internacionalización "]
[null,null,"Oferta de servicios de bienestar para visitantes internacionales.","24- Bienestar visitantes","Cantidad de visitantes internacionales a la unidad académica que recibieron servicios de bienestar /Cantidad total de visitantes internacionales*100","Acceso a servicios de bienestar","La Universidad no da acceso a los visitantes internacionales de la unidad académica a servicios de bienestar","La Universidad da acceso restringido a los visitantes internacionales de la unidad académica a servicios de bienestar","100% de los visitantes internacionales presenciales (estudiantes, administrativos, profesores) de la unidad académica tienen acceso a algún servicio de bienestar"]
[null,null,"Implementación de un sistema institucional de información de la internacionalización.","25- Sistema de información","Existencia de bases de datos y sistemas de información institucionales y de la unidad académica que soportan la gestión de la internacionalización de la unidad académica","Funcionamiento de un sistema de información","1 base de datos de movilidad  saliente y  1 base de datos de convenios actualizadas permanentemente","1 base de datos de movilidad  saliente, 1 base de datos de movilidad entrante  y  1 base de datos de convenios actualizadas permanentemente","1 sistema de información institucional de la internacionalización apropiado en la unidad académica."]
[null,null,"Elaboración de estudios de impacto de la internacionalización.","26- Estudios de impacto","Cantidad de estudios de impacto de internacionalización elaborados al año por la unidad académica","Realización de estudios de impacto","Ningún estudio de impacto de la internacionalización","Estudios de impacto de la internacionalización en proceso de elaboración","1 estudio de impacto de los ajustes curriculares derivados del análisis de tendencias y de la interacción de los estudiantes y docentes,  1 estudios de impacto de la aplicación de políticas y estrategias de interacción con comunidades, o1 estudio de impacto de las estrategias de interacción y formación en segunda lengua"]
[]
[]
[null,"Resultado del diagnóstico para el Eje Estratégico: Interacción Estratégica",null,null,null,null,"Resultado del diagnóstico para el Eje Estratégico: Movilidad"]
[]
[]
[]
[]
[]
[]
[]
[]
[]
[]
[]
[]
[]
[]
[]
[]
[]
[]
[]
[]
[]
[]
[]
[]
[]
[]
[]
[]
[]
[]
[]
[]
[null,null,null,"Diagnóstico Final"]
[]
[]
[null,null,null,{"$f":"Hoja2!E56","v":"Recuerde evaluar cada uno de los indicadores para obtener el resultado del diagnóstico"}]
[]
[]
[]
[]
[]
[]
[]
[]
[]
[]
[]
[null,"Resultado del diagnóstico para el Eje Estratégico: Gestión de Capacidades",null,null,null,null,"Resultado del diagnóstico para el Eje Estratégico: Gestión Administrativa"]

{"sheet":"Hoja2","index":1,"n_rows":58,"n_cols":9,"rows_kept":58,"cut":false,"hidden":true,"merged":[]}
["EJE ESTRATÉGICO","OBJETIVO","NOMBRE INDICADOR","FÓRMULA DEL INDICADOR","NOMBRE","CALIFICACIÓN","evalbaja","evalmed","evalalta"]
["INTERACCIÓN ESTRATÉGICA","Implementación de lineamientos de políticas para la interacción.","1- Logros de los lineamientos de las políticas de interacción ","Definición de agenda estratégica de internacionalización de la unidad académica a la luz de la apuesta institucional plasmada en el respectivo Plan de Acción.","Mapa de socios estratégicos",0,{"$f":"IF($F2=1,1,0)","v":0},{"$f":"IF($F2=2,1,0)","v":0},{"$f":"IF($F2=3,1,0)","v":0}]
[null,null,null,"Cantidad de informes integrados de gestión, resultados e impactos en la unidad académica, de los lineamientos de internacionalización institucional.","Informe integrado",0,{"$f":"IF($F3=1,1,0)","v":0},{"$f":"IF($F3=2,1,0)","v":0},{"$f":"IF($F3=3,1,0)","v":0}]
[null,"Creación de redes académicas, de aprendizaje, de investigación y de extensión.","2- Creación de redes","Cantidad de redes académicas, de aprendizaje, de investigación y de extensión activos a nivel nacional e internacional, creadas o lideradas por la unidad académica. ","Liderazgo de una red",0,0,0,0]
[null,"Participación en redes académicas, científicas, técnicas, tecnológicas, de cultura y de aprendizaje.","3- Participación en redes","Cantidad de estudiantes de la unidad académica participando en redes académicas a nivel nacional e internacional/ Total de estudiantes matriculados en la unidad académica*100  ","Estudiantes participantes en una red",0,0,0,0]
[null,null,null,"Cantidad de profesores vinculados y ocasionales de la unidad académica participando en redes académicas a nivel nacional e internacional/ Total de profesores vinculados y ocasionales de la unidad académica*100","Profesores participantes en una red",0,0,0,0]
[null,"Gestión de convenios.","4- Convenios activos","Cantidad de convenios nacionales e internacionales activos con productos y resultados en la unidad académica/ cantidad total de convenios vigentes para la unidad académica*100","Convenios con productos y resultados",0,0,0,0]
[null,"Interacción de la comunidad académica.","5- Interacción global","Cantidad de espacios de relacionamiento estratégico en los que participa la unidad académica, bien sea que hayan sido organizados por ésta o que sean ofrecidos por la Universidad/ año","Participación en espacios de interacción",0,0,0,0]
[null,"Interacción con egresados en el exterior.","6- Egresados en el exterior","Cantidad de egresados  de la unidad académica en el exterior participantes en encuentros, proyectos, servicios ofrecidos por la unidad académica o por la Universidad/ Total de egresados de la unidad académica que se encuentran en el exterior*100","Participación de egresados",0,0,0,0]
["MOVILIDAD","Movilidad entrante y saliente de estudiantes.","7- Movilidad estudiantes","Cantidad de estudiantes de la unidad académica en movilidad nacional e internacional saliente, presencial y virtual/ Total de estudiantes potenciales de movilidad  de la unidad académica* 100","Movilidad saliente de estudiantes",0,0,0,0]
[null,null,null,"Cantidad de estudiantes de la unidad académica en movilidad saliente presencial y virtual con países de otras lenguas / Total de movilidades de estudiantes matriculados en la unidad académica* 100","Movilidad estudiantil en otras lenguas",0,0,0,0]
[null,null,null,"Cantidad de estudiantes en movilidad entrante nacional e internacional, presencial y virtual en la unidad académica/Total de estudiantes matriculados en la unidad académica*100","Movilidad entrante de estudiantes",0,0,0,0]
[null,"Movilidad entrante y saliente de profesores y personal administrativo.","8- Movilidad docente y de personal administrativo","Cantidad de profesores vinculados y ocasionales de la unidad académica en movilidad saliente presencial y virtual, nacional e internacional/ Total de profesores vinculados y ocasionales  de la unidad académica* 100","Movilidad saliente de profesores",0,0,0,0]
[null,null,null,"Cantidad de profesores vinculados y ocasionales de la unidad académica en movilidad saliente presencial y virtual con países de otras lenguas / Total de movilidades de profesores vinculados y ocasionales de la unidad académica * 100","Movilidad profesoral en otras lenguas",0,0,0,0]
[null,null,null,"Cantidad de profesores vinculados y ocasionales de la unidad académica que asisten a eventos internacionales, presenciales o virtuales (como investigadores visitantes o conferencistas, cursos de actualización, etc.) / Cantidad total de profesores vinculados y ocasionales de la unidad académica*100","Asistencia de profesores a eventos",0,0,0,0]
[null,null,null,"Cantidad de profesores en movilidad nacional e internacional, presencial o virtual entrante en la unidad académica/Total de profesores vinculados y ocasionales  de la unidad académica*100","Movilidad entrante de profesores",0,0,0,0]
[null,null,null,"Cantidad de personal administrativo de la unidad académica en movilidad saliente presencial y virtual / Total de movilidades de personal administrativo de la unidad académica * 100","Movilidad saliente de personal administrativo",0,0,0,0]
[null,null,null,"Cantidad de personal administrativo de en movilidad nacional e internacional, presencial o virtual entrante en la unidad académica / Total de movilidades de personal administrativo de la unidad académica * 100","Movilidad entrante de personal administrativo",0,0,0,0]
[null,"Gestión de programas de doble titulación.","9- Programas de doble titulación","Cantidad de estudiantes de la unidad académica cursando programas de doble titulación nacional o internacional/ año","Estudiantes en doble titulación",0,0,0,0]
[null,"Gestión de homologaciones y reconocimiento de aprendizajes y créditos académicos.","10- Homologaciones y reconocimiento","Cantidad de informes integrados de gestión, resultados e impactos de las homologaciones y reconocimiento de aprendizajes y créditos académicos realizados para estudiantes en movilidad saliente nacional e internacional, presencial y virtual.","Informes de homologaciones",0,0,0,0]
[null,"Aplicación de estímulos para la interacción y la cooperación.","11- Estímulos para la interacción","Valor de los estímulos, apoyos económicos y recursos del fondo de movilidad otorgados a estudiantes, profesores y administrativos de la unidad académica para la interacción y la cooperación en general (nacional e internacional) y en segunda lengua / Valor del presupuesto total de la unidad académica*100","Presupuesto para cooperación",0,0,0,0]
["GESTIÓN DE CAPACIDADES","Gestión de estrategias internacionalización en casa.","12- Internacionalización en casa.","Cantidad de micro certificaciones ofrecidas por la unidad académica o la Universidad para los estudiantes de la unidad académica.","Oferta de microcertificaciones",0,0,0,0]
[null,null,null,"Cantidad de estudiantes de la unidad académica que participan en actividades que promueven la interculturalidad y la visión global / Cantidad total de estudiantes de la unidad académica","Participación en actividades de interculturalidad",0,0,0,0]
[null,"Formación de competencias globales, multiculturales y de otras lenguas.","13- Competencias globales","Definición de habilidades internacionales en el perfil de egreso y plan de estudios ","Perfil global de egreso",0,0,0,0]
[null,null,null,"Cantidad de estudiantes de la unidad académica con competencias en segunda lengua / Total de estudiantes  de la unidad académica* 100","Certificación estudiante en segunda lengua",0,0,0,0]
[null,null,null,"Cantidad de profesores vinculados y ocasionales de la unidad académica con competencias en segunda lengua / Total de profesores  vinculados y ocasionales de la unidad académica* 100","Certificación profesores en segunda lengua",0,0,0,0]
[null,null,null,"Cantidad de profesores vinculados y ocasionales de la unidad académica formados en competencias globales y multiculturales por la unidad académica, la DRI, otra dependencia de la Universidad o externamente/ Total de profesores vinculados y ocasionales de la unidad académica* 100","Formación docente en competencias globales",0,0,0,0]
[null,"Gestión de estrategias de internacionalización del currículo.","14- Internacionalización del currículo.","Cantidad de profesores vinculados y ocasionales de la unidad académica que aplican estrategias de internacionalización del currículo: contenido internacional, cotutelas, clase espejo, codirecciones, COIL,  bibliografía en otro idioma, aula invertida, CUL/AICLE Aprendizaje Integrado de Contenidos y Lenguas Extranjeras (AICLE; en inglés Content and Language Integrated Learning, CLIL), participación en comunidades internacionales de aprendizaje, competencia multi e interculturales, enfoque inter comprensivo de otras lenguas, entre otras / Total de profesores vinculados y ocasionales de la unidad académica * 100","Estrategias de internacionalización en el aula",0,0,0,0]
[null,null,null,"Cantidad de planes de estudio de los programas de la unidad académica con sistema de créditos armonizados con referentes internacionales/ Total de programas académicos de la unidad académica*100","Armonización de planes de estudios",0,0,0,0]
[null,null,null,"Cantidad de planes de estudio de los programas de la unidad académica con resultados de aprendizaje referenciados internacionalmente/ Total de programas académicos de la unidad académica*100","Referenciación internacional de resultados de aprendizaje",0,0,0,0]
[null,"Proyección internacional de la producción científica Innovación, artística, cultural y emprendimientos.","15- Producción investigativa","Cantidad de servicios y actividades de diplomacia científica en las que participa la unidad académica / año","Acciones de diplomacia científica",0,0,0,0]
[null,null,null,"Cantidad de productos de investigación publicados por investigadores de la unidad académica con investigadores extranjeros/ Cantidad de productos de investigación realizados en la unidad académica*100","Artículos con investigadores extranjeros",0,0,0,0]
[null,null,null,null,"Libros con investigadores extranjeros",0,0,0,0]
[null,null,null,null,"Capítulos de libros con investigadores extranjeros",0,0,0,0]
[null,null,null,null,"Desarrollo conjunto de obras artísticas",0,0,0,0]
[null,"Gestión de recursos y oportunidades de cooperación.","16- Recursos de cooperación","Cantidad de proyectos de cooperación académica nacional e internacional gestionados por la unidad académica al año.","Proyectos de cooperación",0,0,0,0]
[null,"Referenciación internacional de oferta académica, tendencias de las disciplinas, experiencias y prácticas.","17- Referenciación académica","Cantidad de estudios de referenciación internacional realizados por la unidad académica al año","Estudios de referenciación",0,0,0,0]
[null,"Incorporación de tecnologías de información y aprendizaje.","18- Tecnologías de aprendizaje","Cantidad de profesores vinculados y ocasionales de la unidad académica que incorporan tecnologías de aprendizaje: recursos educativos digitales abiertos, MOOC- Massive, Open, Online, Course-, NOOC - Nano Open Online Massive- y SPOC- Small Private Online Course/ Total de profesores vinculados y ocasionales de la unidad académica de la unidad académica * 100","Tecnologías aplicadas a la docencia",0,0,0,0]
["GESTIÓN ADMINISTRATIVA","Existencia de una estructura de soporte para la internacionalización.","19- Estructura organizacional","Cantidad de personas que soportan la gestión operativa de la internacionalización en la unidad académica","Responsables de la internacionalización",0,0,0,0]
[null,"Existencia de lineamientos para la internacionalización.","20- Lineamientos  de internacionalización","Aplicación en la unidad académica de lineamientos institucionales para la internacionalización: movilidad, contratación profesores extranjeros, contratación de profesores con competencias en segunda lengua, homologaciones y reconocimiento de resultados de aprendizaje","Lineamientos de internacionalización",0,0,0,0]
[null,"Gestión de sistema institucional de evaluación y autorregulación de la internacionalización.","21- Evaluación y autorregulación","Existencia de un sistema institucional de gestión integral de la internacionalización","Sistema integrado de gestión",0,0,0,0]
[null,"Comunicación y difusión de servicios y actividades de internacionalización.","22- Comunicación","Cantidad de servicios y actividades de internacionalización que se difunden por parte de la Universidad y de la unidad académica a los miembros de la comunidad de la unidad académica","Difusión de actividades",0,0,0,0]
[null,"Asignación de recursos para la internacionalización.","23- Recursos disponibles","Valor de los recursos asignados a la internacionalización en la unidad académica/ Valor del presupuesto total de la unidad académica*100","Recursos para la internacionalización",0,0,0,0]
[null,"Oferta de servicios de bienestar para visitantes internacionales.","24- Bienestar visitantes","Cantidad de visitantes internacionales a la unidad académica que recibieron servicios de bienestar /Cantidad total de visitantes internacionales*100","Acceso a servicios de bienestar",0,0,0,0]
[null,"Implementación de un sistema institucional de información de la internacionalización.","25- Sistema de información","Existencia de bases de datos y sistemas de información institucionales y de la unidad académica que soportan la gestión de la internacionalización de la unidad académica","Funcionamiento de un sistema de información",0,0,0,0]
[null,"Elaboración de estudios de impacto de la internacionalización.","26- Estudios de impacto","Cantidad de estudios de impacto de internacionalización elaborados al año por la unidad académica","Realización de estudios de impacto",0,0,0,0]
[]
[]
[]
[]
[]
[]
[]
[]
["evalbaja",{"$f":"SUM(G2:G46)","v":0},"La unidad académica gestiona actividades de internacionalización básica y tal vez incipiente, porque la experiencia en internacionalización es mínima y la comunidad de profesores, estudiantes y personal administrativo debe prepararse para cambios de paradigmas. Se centra en la gestión de indicadores tradicionales de internacionalización (movilidad, convenios, otras lenguas) en un nivel inicial."]
["evalmed",{"$f":"SUM(H2:H46)","v":0},"La unidad académica ha superado el nivel básico centrado en la movilidad. Avanza hacia una visión internacional, interdisciplinaria e intercultural y de interacción internacional. La internacionalización es transversal a las labores sustantivas.",null,{"$f":"IF(AND(B55=0,B56=0,B57=0),C58,IF(AND(B55>B56,B55>B57),C55,IF(AND(B56>=B55,B56>B57),C56,C57)))","v":"Recuerde evaluar cada uno de los indicadores para obtener el resultado del diagnóstico"}]
["evalalta",{"$f":"SUM(I2:I46)","v":0},"La unidad académica concibe la internacionalización como un sistema complejo e interrelacionado sobre el que se fundamenta su crecimiento y su desarrollo estratégico con el propósito de posicionarse e insertarse en la dinámica internacional."]
[null,null,"Recuerde evaluar cada uno de los indicadores para obtener el resultado del diagnóstico"]